[Event "*** MasterClass Titled Tuesday Blitz"]
[Site "Chess.com"]
[Date "2017.07.04"]
[Round "7"]
[White "Schemato"]
[Black "AdrianaNikolova"]
[Result "0-1"]
[WhiteElo "2292"]
[BlackElo "2314"]
[TimeControl "180+2"]
[EndTime "14:34:20 PDT"]
[Termination "AdrianaNikolova won by resignation"]

1. c4 {[%clk 0:03:01.9]} 1... e5 {[%clk 0:03:00.1]} 2. g3 {[%clk 0:03:01.9]}
2... Nf6 {[%clk 0:03:00.9]} 3. Bg2 {[%clk 0:03:02.6]} 3... d5 {[%clk 0:03:02.2]}
4. cxd5 {[%clk 0:03:03.2]} 4... Nxd5 {[%clk 0:03:04.1]} 5. Nf3 {[%clk
0:03:04.5]} 5... Nc6 {[%clk 0:03:04.7]} 6. O-O {[%clk 0:03:05.1]} 6... Be7
{[%clk 0:03:05.5]} 7. d4 {[%clk 0:03:04.9]} 7... e4 {[%clk 0:02:58.8]} 8. Ne5
{[%clk 0:03:05.4]} 8... f5 {[%clk 0:02:44.7]} 9. Nxc6 {[%clk 0:03:05.1]} 9...
bxc6 {[%clk 0:02:46.6]} 10. Nc3 {[%clk 0:03:04.8]} 10... O-O {[%clk 0:02:45.9]}
11. Qa4 {[%clk 0:02:58.4]} 11... Qd6 {[%clk 0:02:38.3]} 12. Nxd5 {[%clk
0:02:48.3]} 12... cxd5 {[%clk 0:02:38.1]} 13. Bf4 {[%clk 0:02:48.9]} 13... Qb6
{[%clk 0:02:34.1]} 14. b3 {[%clk 0:02:41.2]} 14... Bf6 {[%clk 0:02:22.6]} 15. e3
{[%clk 0:02:33.2]} 15... g5 {[%clk 0:02:22.1]} 16. Be5 {[%clk 0:02:33.9]} 16...
Bxe5 {[%clk 0:02:22.9]} 17. dxe5 {[%clk 0:02:35.8]} 17... Qe6 {[%clk 0:02:20.6]}
18. Qd4 {[%clk 0:02:29.3]} 18... Ba6 {[%clk 0:02:17]} 19. Rfc1 {[%clk
0:02:26.9]} 19... Rac8 {[%clk 0:02:16.9]} 20. Qxa7 {[%clk 0:02:18.7]} 20... Bd3
{[%clk 0:02:13.8]} 21. Rxc7 {[%clk 0:02:15.9]} 21... Qxe5 {[%clk 0:02:11.7]} 22.
Rac1 {[%clk 0:02:13.2]} 22... Rxc7 {[%clk 0:02:09.5]} 23. Qxc7 {[%clk 0:02:10]}
23... Qxc7 {[%clk 0:01:45.3]} 24. Rxc7 {[%clk 0:02:11.9]} 24... Ra8 {[%clk
0:01:44.8]} 25. a4 {[%clk 0:02:10]} 25... Rb8 {[%clk 0:01:45.6]} 26. Rc3 {[%clk
0:02:10.2]} 26... Kf7 {[%clk 0:01:45.2]} 27. Bf1 {[%clk 0:02:10.7]} 27... Bxf1
{[%clk 0:01:44.9]} 28. Kxf1 {[%clk 0:02:12.6]} 28... Ke6 {[%clk 0:01:46.3]} 29.
Ke2 {[%clk 0:02:12.4]} 29... Ke5 {[%clk 0:01:40.6]} 30. Kd2 {[%clk 0:02:13.5]}
30... f4 {[%clk 0:01:41.9]} 31. Kc2 {[%clk 0:02:11.1]} 31... fxe3 {[%clk
0:01:42.5]} 32. fxe3 {[%clk 0:02:11.2]} 32... Rf8 {[%clk 0:01:36.5]} 33. a5
{[%clk 0:01:58.3]} 33... Rf2+ {[%clk 0:01:30.8]} 34. Kb1 {[%clk 0:01:59.2]}
34... d4 {[%clk 0:01:31.7]} 35. Rc5+ {[%clk 0:01:56]} 35... Kd6 {[%clk
0:01:32.7]} 36. exd4 {[%clk 0:01:57.9]} 36... e3 {[%clk 0:01:33.6]} 37. Re5
{[%clk 0:01:57.7]} 37... e2 {[%clk 0:01:31.3]} 38. a6 {[%clk 0:01:52]} 38...
Rf1+ {[%clk 0:01:25.1]} 39. Kb2 {[%clk 0:01:50.5]} 39... e1=Q {[%clk 0:01:27]}
40. Rxe1 {[%clk 0:01:50.9]} 40... Rxe1 {[%clk 0:01:28.9]} 41. b4 {[%clk
0:01:49.8]} 41... Kc6 {[%clk 0:01:23.5]} 42. d5+ {[%clk 0:01:50.5]} 42... Kxd5
{[%clk 0:01:21.7]} 43. Kc3 {[%clk 0:01:51.2]} 43... Re3+ {[%clk 0:01:20.1]} 44.
Kb2 {[%clk 0:01:51.3]} 44... Kc4 {[%clk 0:01:19]} 0-1

[Event "*** MasterClass Titled Tuesday Blitz"]
[Site "Chess.com"]
[Date "2017.07.04"]
[Round "7"]
[White "Me_ch_an"]
[Black "Rating-Schmating"]
[Result "1-0"]
[WhiteElo "2254"]
[BlackElo "2226"]
[TimeControl "180+2"]
[EndTime "14:34:36 PDT"]
[Termination "Me_ch_an won by checkmate"]

1. e4 {[%clk 0:03:01.9]} 1... e6 {[%clk 0:03:00.6]} 2. d4 {[%clk 0:03:02.4]}
2... d5 {[%clk 0:03:01.8]} 3. e5 {[%clk 0:03:03.7]} 3... c5 {[%clk 0:03:02.4]}
4. c3 {[%clk 0:03:05]} 4... Nc6 {[%clk 0:03:01.6]} 5. Ne2 {[%clk 0:03:06]} 5...
Qb6 {[%clk 0:03:02.1]} 6. g3 {[%clk 0:03:06.9]} 6... f6 {[%clk 0:03:01.1]} 7.
exf6 {[%clk 0:03:07]} 7... Nxf6 {[%clk 0:03:03]} 8. Bg2 {[%clk 0:03:08.3]} 8...
Bd7 {[%clk 0:02:58.6]} 9. O-O {[%clk 0:03:09.2]} 9... Bd6 {[%clk 0:02:56.8]} 10.
b3 {[%clk 0:03:10]} 10... O-O {[%clk 0:02:55.5]} 11. Be3 {[%clk 0:03:10.7]}
11... Rae8 {[%clk 0:02:51.7]} 12. h3 {[%clk 0:03:06]} 12... cxd4 {[%clk
0:02:51]} 13. cxd4 {[%clk 0:03:06.1]} 13... Qc7 {[%clk 0:02:50]} 14. Nbc3 {[%clk
0:03:05.5]} 14... a6 {[%clk 0:02:49.9]} 15. Rc1 {[%clk 0:03:06.1]} 15... Qb8
{[%clk 0:02:49.3]} 16. Na4 {[%clk 0:03:05.1]} 16... Ne4 {[%clk 0:02:39.2]} 17.
Nc5 {[%clk 0:02:55.4]} 17... Nxc5 {[%clk 0:02:39.2]} 18. dxc5 {[%clk 0:02:57.3]}
18... Bc7 {[%clk 0:02:38.2]} 19. a3 {[%clk 0:02:52.7]} 19... Ne5 {[%clk
0:02:37.8]} 20. Nd4 {[%clk 0:02:48.8]} 20... Ng6 {[%clk 0:02:34.9]} 21. b4
{[%clk 0:02:43.1]} 21... Bc6 {[%clk 0:02:25.5]} 22. a4 {[%clk 0:02:35.5]} 22...
e5 {[%clk 0:02:21.9]} 23. Nxc6 {[%clk 0:02:24.4]} 23... bxc6 {[%clk 0:02:21.4]}
24. Rb1 {[%clk 0:02:14.5]} 24... e4 {[%clk 0:02:04.5]} 25. b5 {[%clk 0:02:13.5]}
25... axb5 {[%clk 0:02:05.3]} 26. axb5 {[%clk 0:02:14.2]} 26... Qa8 {[%clk
0:02:01.3]} 27. b6 {[%clk 0:02:12.2]} 27... Be5 {[%clk 0:02:01.9]} 28. Bd4
{[%clk 0:02:11.9]} 28... Bxd4 {[%clk 0:02:02.5]} 29. Qxd4 {[%clk 0:02:13.8]}
29... Qb7 {[%clk 0:02:03]} 30. Ra1 {[%clk 0:02:13.8]} 30... Ra8 {[%clk
0:02:03.7]} 31. Rxa8 {[%clk 0:02:02.2]} 31... Rxa8 {[%clk 0:02:05.6]} 32. Ra1
{[%clk 0:02:03]} 32... Nf8 {[%clk 0:01:57.3]} 33. Rxa8 {[%clk 0:01:50.5]} 33...
Qxa8 {[%clk 0:01:59.2]} 34. Qe5 {[%clk 0:01:48.6]} 34... Qa2 {[%clk 0:01:24.1]}
35. Kh2 {[%clk 0:01:26.4]} 35... Qb1 {[%clk 0:01:21.9]} 36. Qc7 {[%clk
0:01:21.4]} 36... Ne6 {[%clk 0:01:21.5]} 37. Qc8+ {[%clk 0:01:22.5]} 37... Kf7
{[%clk 0:01:21.4]} 38. b7 {[%clk 0:01:23.6]} 38... Nd4 {[%clk 0:01:11.5]} 39.
b8=Q {[%clk 0:01:21.2]} 39... Qc2 {[%clk 0:01:13.1]} 40. Qf4+ {[%clk 0:01:19.6]}
40... Kg6 {[%clk 0:01:13.5]} 41. Qcg4# {[%clk 0:01:19.5]} 1-0

[Event "*** MasterClass Titled Tuesday Blitz"]
[Site "Chess.com"]
[Date "2017.07.04"]
[Round "7"]
[White "BigMak2500"]
[Black "abubakrtagelsir"]
[Result "1-0"]
[WhiteElo "2409"]
[BlackElo "2178"]
[TimeControl "180+2"]
[EndTime "14:34:45 PDT"]
[Termination "BigMak2500 won by resignation"]

1. e4 {[%clk 0:03:01.9]} 1... d6 {[%clk 0:02:59.8]} 2. d4 {[%clk 0:03:01.4]}
2... Nf6 {[%clk 0:02:59.9]} 3. Nc3 {[%clk 0:03:02.7]} 3... g6 {[%clk 0:03:00.1]}
4. h4 {[%clk 0:03:03.2]} 4... h5 {[%clk 0:02:56.4]} 5. Bg5 {[%clk 0:02:56.6]}
5... Bg7 {[%clk 0:02:56.1]} 6. Be2 {[%clk 0:02:54.4]} 6... c6 {[%clk 0:02:54.8]}
7. Qd2 {[%clk 0:02:50.2]} 7... b5 {[%clk 0:02:55.1]} 8. O-O-O {[%clk 0:02:50.4]}
8... b4 {[%clk 0:02:55.6]} 9. Na4 {[%clk 0:02:41.4]} 9... Nxe4 {[%clk
0:02:54.8]} 10. Qe3 {[%clk 0:02:34.5]} 10... Nxg5 {[%clk 0:02:53.1]} 11. hxg5
{[%clk 0:02:32.7]} 11... Nd7 {[%clk 0:02:52.9]} 12. g4 {[%clk 0:02:23.8]} 12...
h4 {[%clk 0:02:47.4]} 13. Bc4 {[%clk 0:02:18.7]} 13... Nb6 {[%clk 0:02:44.1]}
14. Nxb6 {[%clk 0:02:15.8]} 14... axb6 {[%clk 0:02:43.8]} 15. f3 {[%clk
0:02:08.9]} 15... d5 {[%clk 0:02:25.1]} 16. Bb3 {[%clk 0:02:08.6]} 16... e6
{[%clk 0:02:25]} 17. f4 {[%clk 0:02:05.5]} 17... c5 {[%clk 0:02:12.1]} 18. dxc5
{[%clk 0:02:02.1]} 18... bxc5 {[%clk 0:01:32]} 19. Bxd5 {[%clk 0:01:59.6]} 19...
Qa5 {[%clk 0:01:28.1]} 20. Bc6+ {[%clk 0:01:50.4]} 20... Kf8 {[%clk 0:01:27.8]}
21. Bxa8 {[%clk 0:01:46.4]} 21... Qxa8 {[%clk 0:01:16.1]} 22. Qxc5+ {[%clk
0:01:42.4]} 22... Ke8 {[%clk 0:01:12.5]} 23. Qb5+ {[%clk 0:01:39.2]} 23... Ke7
{[%clk 0:01:09.7]} 24. Qxb4+ {[%clk 0:01:38]} 24... Ke8 {[%clk 0:01:09.9]} 25.
Qb5+ {[%clk 0:01:34.9]} 25... Ke7 {[%clk 0:01:09.8]} 26. Qc5+ {[%clk 0:01:32.4]}
26... Ke8 {[%clk 0:00:59.8]} 27. Qc7 {[%clk 0:01:32.8]} 27... Ba6 {[%clk
0:00:58.4]} 28. Nf3 {[%clk 0:01:25.3]} 28... Be2 {[%clk 0:00:56.9]} 29. Ne5
{[%clk 0:01:02.6]} 29... Bxe5 {[%clk 0:00:50.5]} 30. Qxe5 {[%clk 0:00:59.8]}
30... Rh7 {[%clk 0:00:45.9]} 31. Qxe2 {[%clk 0:00:51.3]} 1-0

[Event "*** MasterClass Titled Tuesday Blitz"]
[Site "Chess.com"]
[Date "2017.07.04"]
[Round "7"]
[White "CraiggoryC"]
[Black "djogrodek1"]
[Result "0-1"]
[WhiteElo "2050"]
[BlackElo "2340"]
[TimeControl "180+2"]
[EndTime "14:34:51 PDT"]
[Termination "djogrodek1 won by resignation"]

1. e4 {[%clk 0:03:01.9]} 1... c5 {[%clk 0:02:54.8]} 2. Nf3 {[%clk 0:03:02.6]}
2... d6 {[%clk 0:02:56.3]} 3. d4 {[%clk 0:03:04]} 3... cxd4 {[%clk 0:02:58.2]}
4. Nxd4 {[%clk 0:03:05.2]} 4... Nf6 {[%clk 0:02:59.2]} 5. Nc3 {[%clk 0:03:06.6]}
5... g6 {[%clk 0:03:01.1]} 6. Be3 {[%clk 0:03:07.1]} 6... Bg7 {[%clk 0:03:02.5]}
7. f3 {[%clk 0:03:08.3]} 7... O-O {[%clk 0:03:04.1]} 8. Qd2 {[%clk 0:03:09.7]}
8... Nc6 {[%clk 0:03:06]} 9. Bc4 {[%clk 0:03:09.5]} 9... Bd7 {[%clk 0:03:06.9]}
10. O-O-O {[%clk 0:03:08.8]} 10... Rc8 {[%clk 0:03:08.4]} 11. Bb3 {[%clk
0:03:09.7]} 11... Nxd4 {[%clk 0:03:08.1]} 12. Bxd4 {[%clk 0:03:10.1]} 12... b5
{[%clk 0:03:10]} 13. Nd5 {[%clk 0:03:06.8]} 13... Nxd5 {[%clk 0:03:10.9]} 14.
Bxg7 {[%clk 0:03:05.4]} 14... Kxg7 {[%clk 0:03:12.8]} 15. exd5 {[%clk
0:03:02.1]} 15... a5 {[%clk 0:03:14.2]} 16. a3 {[%clk 0:03:00.5]} 16... Kg8
{[%clk 0:03:15.6]} 17. Rhe1 {[%clk 0:02:51.3]} 17... Rc5 {[%clk 0:03:13.3]} 18.
g4 {[%clk 0:02:39.4]} 18... b4 {[%clk 0:03:12.3]} 19. axb4 {[%clk 0:02:32.3]}
19... axb4 {[%clk 0:03:14.2]} 20. Qxb4 {[%clk 0:02:33.1]} 20... Qa8 {[%clk
0:03:15.7]} 21. Rd3 {[%clk 0:02:25.3]} 21... Qa1+ {[%clk 0:03:11.3]} 22. Kd2
{[%clk 0:02:25.7]} 22... Qxb2 {[%clk 0:03:13.2]} 23. Qd4 {[%clk 0:01:45.9]}
23... Qxd4 {[%clk 0:03:13.3]} 24. Rxd4 {[%clk 0:01:46.7]} 24... Re8 {[%clk
0:03:15]} 25. Rde4 {[%clk 0:01:19]} 25... Kf8 {[%clk 0:03:12.5]} 26. h4 {[%clk
0:01:11.5]} 26... Bc8 {[%clk 0:03:10.4]} 27. Ra4 {[%clk 0:01:02.7]} 27... Bb7
{[%clk 0:03:08.5]} 28. c4 {[%clk 0:00:58.6]} 28... Rb8 {[%clk 0:03:01.9]} 29.
Re3 {[%clk 0:00:49.7]} 29... Rc7 {[%clk 0:02:47.5]} 30. Ra7 {[%clk 0:00:46.9]}
30... Ke8 {[%clk 0:02:43.9]} 31. Ba4+ {[%clk 0:00:43.9]} 31... Kd8 {[%clk
0:02:44.5]} 32. Bc6 {[%clk 0:00:38.6]} 32... Bxc6 {[%clk 0:02:41.8]} 33. Rxc7
{[%clk 0:00:38.4]} 33... Kxc7 {[%clk 0:02:43.7]} 34. dxc6 {[%clk 0:00:37.7]}
34... e6 {[%clk 0:02:42.2]} 35. f4 {[%clk 0:00:29.6]} 35... Kxc6 {[%clk
0:02:38.9]} 36. f5 {[%clk 0:00:30.2]} 36... gxf5 {[%clk 0:02:29.8]} 37. gxf5
{[%clk 0:00:30.8]} 37... e5 {[%clk 0:02:31.4]} 38. Rg3 {[%clk 0:00:31.2]} 38...
Kc5 {[%clk 0:02:31.2]} 39. Rg7 {[%clk 0:00:24.6]} 39... Kxc4 {[%clk 0:02:32]}
40. Rxf7 {[%clk 0:00:25]} 40... Kd4 {[%clk 0:02:33.6]} 41. Rxh7 {[%clk 0:00:21]}
41... e4 {[%clk 0:02:34.3]} 42. Re7 {[%clk 0:00:18.8]} 42... Rb2+ {[%clk
0:02:33.7]} 43. Kc1 {[%clk 0:00:17.6]} 43... Rf2 {[%clk 0:02:34.2]} 44. Re6
{[%clk 0:00:15.7]} 44... d5 {[%clk 0:02:35.3]} 45. f6 {[%clk 0:00:15.9]} 45...
Kc3 {[%clk 0:02:35.5]} 46. Rc6+ {[%clk 0:00:15.8]} 46... Kd3 {[%clk 0:02:36.7]}
47. h5 {[%clk 0:00:15.9]} 47... e3 {[%clk 0:02:32.8]} 48. h6 {[%clk 0:00:15.1]}
48... e2 {[%clk 0:02:34.1]} 49. Re6 {[%clk 0:00:15.3]} 49... Rxf6 {[%clk
0:02:33.8]} 0-1

[Event "*** MasterClass Titled Tuesday Blitz"]
[Site "Chess.com"]
[Date "2017.07.04"]
[Round "7"]
[White "GM_dmitrij"]
[Black "escher"]
[Result "1-0"]
[WhiteElo "2483"]
[BlackElo "2038"]
[TimeControl "180+2"]
[EndTime "14:34:52 PDT"]
[Termination "GM_dmitrij won by resignation"]

1. e4 {[%clk 0:03:01.9]} 1... c5 {[%clk 0:03:00.8]} 2. Nf3 {[%clk 0:03:02.2]}
2... Nc6 {[%clk 0:03:02.1]} 3. d4 {[%clk 0:03:03.1]} 3... cxd4 {[%clk
0:03:04.1]} 4. Nxd4 {[%clk 0:03:04.5]} 4... Nf6 {[%clk 0:03:05.8]} 5. Nc3 {[%clk
0:03:04.5]} 5... e5 {[%clk 0:03:07.5]} 6. Ndb5 {[%clk 0:03:05.6]} 6... d6 {[%clk
0:03:08.6]} 7. Bg5 {[%clk 0:03:07]} 7... a6 {[%clk 0:03:10.2]} 8. Na3 {[%clk
0:03:07.9]} 8... b5 {[%clk 0:03:11.9]} 9. Bxf6 {[%clk 0:03:09.3]} 9... gxf6
{[%clk 0:03:12.3]} 10. Nd5 {[%clk 0:03:10.3]} 10... f5 {[%clk 0:03:12.2]} 11.
Bd3 {[%clk 0:03:11.9]} 11... Be6 {[%clk 0:03:13.5]} 12. c3 {[%clk 0:03:13.3]}
12... Bg7 {[%clk 0:03:13.8]} 13. Nxb5 {[%clk 0:03:14.8]} 13... axb5 {[%clk
0:03:12.1]} 14. Bxb5 {[%clk 0:03:16.3]} 14... Bd7 {[%clk 0:02:40]} 15. exf5
{[%clk 0:03:15.6]} 15... f6 {[%clk 0:02:25.5]} 16. Qh5+ {[%clk 0:03:06]} 16...
Kf8 {[%clk 0:02:26.2]} 17. O-O {[%clk 0:03:06.9]} 17... Qa5 {[%clk 0:02:23.5]}
18. a4 {[%clk 0:03:07.5]} 18... Rd8 {[%clk 0:02:06.6]} 19. Rfd1 {[%clk
0:02:51.6]} 19... Ne7 {[%clk 0:02:04.1]} 20. Bc4 {[%clk 0:02:33.7]} 20... Be8
{[%clk 0:01:41.5]} 21. Qf3 {[%clk 0:02:33]} 21... Bc6 {[%clk 0:01:28]} 22. b4
{[%clk 0:02:28]} 22... Qa8 {[%clk 0:01:25.5]} 23. b5 {[%clk 0:02:22.7]} 23...
Bxd5 {[%clk 0:01:19.8]} 24. Bxd5 {[%clk 0:02:22.1]} 24... Nxd5 {[%clk
0:01:18.1]} 25. Rxd5 {[%clk 0:02:23.5]} 25... Ke7 {[%clk 0:01:13.6]} 26. a5
{[%clk 0:02:23.3]} 26... Rc8 {[%clk 0:01:12.4]} 27. b6 {[%clk 0:02:19.7]} 27...
Qa6 {[%clk 0:01:07.9]} 28. Qg4 {[%clk 0:02:08.6]} 28... Rhg8 {[%clk 0:00:54.5]}
29. Qb4 {[%clk 0:02:07.7]} 29... Rc6 {[%clk 0:00:48.9]} 30. Qb5 {[%clk
0:02:07.9]} 30... Qxb5 {[%clk 0:00:39.3]} 31. Rxb5 {[%clk 0:02:09.8]} 31... Kd7
{[%clk 0:00:40.4]} 32. a6 {[%clk 0:02:08.4]} 32... Kc8 {[%clk 0:00:26.8]} 33.
Rba5 {[%clk 0:01:55.9]} 33... Rxb6 {[%clk 0:00:17]} 34. a7 {[%clk 0:01:56]}
34... Kb7 {[%clk 0:00:18.1]} 35. a8=Q+ {[%clk 0:01:55]} 35... Rxa8 {[%clk
0:00:19.6]} 36. Rxa8 {[%clk 0:01:56.1]} 36... Bh6 {[%clk 0:00:17.3]} 37. R8a7+
{[%clk 0:01:55.2]} 37... Kc6 {[%clk 0:00:18.3]} 38. Rxh7 {[%clk 0:01:55.7]}
38... Bd2 {[%clk 0:00:18.3]} 39. h4 {[%clk 0:01:54]} 39... Bxc3 {[%clk
0:00:19.3]} 40. Rc1 {[%clk 0:01:54.1]} 40... Rb3 {[%clk 0:00:19.1]} 41. h5
{[%clk 0:01:55.3]} 41... Kd5 {[%clk 0:00:19.8]} 42. h6 {[%clk 0:01:54.9]} 42...
Rb8 {[%clk 0:00:15.9]} 43. Rxc3 {[%clk 0:01:55.2]} 1-0

[Event "*** MasterClass Titled Tuesday Blitz"]
[Site "Chess.com"]
[Date "2017.07.04"]
[Round "7"]
[White "politeplayer"]
[Black "maheswaran26"]
[Result "1-0"]
[WhiteElo "2185"]
[BlackElo "2142"]
[TimeControl "180+2"]
[EndTime "14:35:00 PDT"]
[Termination "politeplayer won on time"]

1. e4 {[%clk 0:03:01.9]} 1... e5 {[%clk 0:02:55.6]} 2. Nf3 {[%clk 0:03:01.3]}
2... Nc6 {[%clk 0:02:48.4]} 3. Bb5 {[%clk 0:03:02.3]} 3... a6 {[%clk 0:02:48.7]}
4. Bxc6 {[%clk 0:03:02.4]} 4... dxc6 {[%clk 0:02:48.9]} 5. O-O {[%clk
0:03:03.8]} 5... Bg4 {[%clk 0:02:46.8]} 6. h3 {[%clk 0:03:03.5]} 6... h5 {[%clk
0:02:47.1]} 7. d3 {[%clk 0:03:03.5]} 7... Qf6 {[%clk 0:02:46.4]} 8. Nbd2 {[%clk
0:03:04.6]} 8... Bc5 {[%clk 0:02:32.2]} 9. Re1 {[%clk 0:02:54.5]} 9... Ne7
{[%clk 0:02:11.7]} 10. Nb3 {[%clk 0:02:41.5]} 10... Bxf3 {[%clk 0:01:35.2]} 11.
Qxf3 {[%clk 0:02:39]} 11... Bd6 {[%clk 0:01:25]} 12. Qxf6 {[%clk 0:02:34.3]}
12... gxf6 {[%clk 0:01:20.4]} 13. Be3 {[%clk 0:02:29.4]} 13... O-O-O {[%clk
0:01:19.8]} 14. Rad1 {[%clk 0:02:20.5]} 14... b6 {[%clk 0:01:17.6]} 15. d4
{[%clk 0:02:15.3]} 15... a5 {[%clk 0:01:11.4]} 16. dxe5 {[%clk 0:02:06.2]} 16...
fxe5 {[%clk 0:01:05.2]} 17. f4 {[%clk 0:01:55]} 17... exf4 {[%clk 0:00:41.1]}
18. Bd4 {[%clk 0:01:54.8]} 18... Rhg8 {[%clk 0:00:39.7]} 19. e5 {[%clk
0:01:55.4]} 19... Bb4 {[%clk 0:00:34.3]} 20. c3 {[%clk 0:01:55]} 20... a4 {[%clk
0:00:24.1]} 21. Nd2 {[%clk 0:01:52.8]} 21... Nf5 {[%clk 0:00:21.9]} 22. Bf2
{[%clk 0:01:44.7]} 22... Ne3 {[%clk 0:00:18.1]} 23. Bxe3 {[%clk 0:01:33.4]}
23... fxe3 {[%clk 0:00:18.8]} 24. cxb4 {[%clk 0:01:23.8]} 24... exd2 {[%clk
0:00:13]} 25. Re2 {[%clk 0:01:21.8]} 25... Rd3 {[%clk 0:00:12.7]} 26. Rexd2
{[%clk 0:01:17.4]} 26... Rxh3 {[%clk 0:00:11.9]} 27. Rf1 {[%clk 0:01:04.6]}
27... Re3 {[%clk 0:00:10.7]} 28. Rxf7 {[%clk 0:01:02.2]} 1-0

[Event "*** MasterClass Titled Tuesday Blitz"]
[Site "Chess.com"]
[Date "2017.07.04"]
[Round "7"]
[White "merillium"]
[Black "stalyansky"]
[Result "1-0"]
[WhiteElo "2335"]
[BlackElo "2237"]
[TimeControl "180+2"]
[EndTime "14:35:38 PDT"]
[Termination "merillium won by resignation"]

1. c4 {[%clk 0:03:01.9]} 1... e6 {[%clk 0:03:00.5]} 2. g3 {[%clk 0:03:01]} 2...
d5 {[%clk 0:03:01.4]} 3. Bg2 {[%clk 0:03:01.2]} 3... dxc4 {[%clk 0:03:02.4]} 4.
Qa4+ {[%clk 0:02:59.9]} 4... Nd7 {[%clk 0:03:03.5]} 5. Qxc4 {[%clk 0:03:00.6]}
5... a6 {[%clk 0:03:05]} 6. Qb3 {[%clk 0:02:55.3]} 6... Ra7 {[%clk 0:02:59.3]}
7. Nf3 {[%clk 0:02:53.6]} 7... c5 {[%clk 0:02:51.6]} 8. O-O {[%clk 0:02:53.8]}
8... b6 {[%clk 0:02:51.8]} 9. d4 {[%clk 0:02:46.8]} 9... Ngf6 {[%clk 0:02:47.9]}
10. Rd1 {[%clk 0:02:45.7]} 10... Be7 {[%clk 0:02:41]} 11. dxc5 {[%clk 0:02:45]}
11... bxc5 {[%clk 0:02:41.2]} 12. Ne5 {[%clk 0:02:43.1]} 12... Qc7 {[%clk
0:02:06.5]} 13. Nc4 {[%clk 0:02:43.5]} 13... O-O {[%clk 0:02:03.2]} 14. Nc3
{[%clk 0:02:34.3]} 14... Bb7 {[%clk 0:02:00.7]} 15. Bf4 {[%clk 0:02:18.3]} 15...
e5 {[%clk 0:01:52.5]} 16. Be3 {[%clk 0:02:17.7]} 16... Rb8 {[%clk 0:01:24.2]}
17. Qc2 {[%clk 0:02:13.4]} 17... Bxg2 {[%clk 0:01:21]} 18. Kxg2 {[%clk
0:02:15.3]} 18... Nb6 {[%clk 0:01:15.4]} 19. Nxb6 {[%clk 0:02:01]} 19... Qxb6
{[%clk 0:01:13.5]} 20. b3 {[%clk 0:01:58.4]} 20... Qc6+ {[%clk 0:01:03.7]} 21.
Kg1 {[%clk 0:01:58.2]} 21... Rd7 {[%clk 0:00:57]} 22. Bg5 {[%clk 0:01:57.5]}
22... Rbd8 {[%clk 0:00:54.8]} 23. Bxf6 {[%clk 0:01:56.7]} 23... Bxf6 {[%clk
0:00:49.6]} 24. e4 {[%clk 0:01:45.5]} 24... g6 {[%clk 0:00:49.6]} 25. Nd5 {[%clk
0:01:44.7]} 25... Bg7 {[%clk 0:00:50.4]} 26. Ne7+ {[%clk 0:01:42.6]} 26... Rxe7
{[%clk 0:00:49.4]} 27. Rxd8+ {[%clk 0:01:43.7]} 27... Re8 {[%clk 0:00:50.6]} 28.
Rad1 {[%clk 0:01:42.9]} 28... Rxd8 {[%clk 0:00:46.3]} 29. Rxd8+ {[%clk
0:01:44.8]} 29... Bf8 {[%clk 0:00:47.1]} 30. Qc4 {[%clk 0:01:45.9]} 30... Kg7
{[%clk 0:00:47]} 31. Qd5 {[%clk 0:01:45.1]} 31... Qf6 {[%clk 0:00:45.5]} 32. Kg2
{[%clk 0:01:31]} 32... h5 {[%clk 0:00:45]} 33. h4 {[%clk 0:01:30.7]} 33... Be7
{[%clk 0:00:23]} 34. Rd7 {[%clk 0:01:28.3]} 34... Kg8 {[%clk 0:00:22.8]} 35. Rb7
{[%clk 0:01:24.9]} 35... Kg7 {[%clk 0:00:19.3]} 36. Qd7 {[%clk 0:01:23.3]} 36...
Bd8 {[%clk 0:00:17.2]} 37. Rb8 {[%clk 0:01:18.5]} 37... Bb6 {[%clk 0:00:11.9]}
38. Qe8 {[%clk 0:01:18.9]} 38... Kh7 {[%clk 0:00:05.8]} 39. Qg8+ {[%clk
0:01:15.6]} 39... Kh6 {[%clk 0:00:06.7]} 40. Rf8 {[%clk 0:01:02.3]} 40... c4
{[%clk 0:00:07.4]} 41. Rxf7 {[%clk 0:01:02.3]} 1-0

[Event "*** MasterClass Titled Tuesday Blitz"]
[Site "Chess.com"]
[Date "2017.07.04"]
[Round "7"]
[White "Noukii"]
[Black "Indianlad"]
[Result "1-0"]
[WhiteElo "2593"]
[BlackElo "2513"]
[TimeControl "180+2"]
[EndTime "14:35:47 PDT"]
[Termination "Noukii won by resignation"]

1. d4 {[%clk 0:03:01.9]} 1... Nf6 {[%clk 0:03:00.2]} 2. Nf3 {[%clk 0:03:00.6]}
2... e6 {[%clk 0:03:00.4]} 3. Bg5 {[%clk 0:03:02.1]} 3... h6 {[%clk 0:02:58.3]}
4. Bxf6 {[%clk 0:03:03]} 4... Qxf6 {[%clk 0:03:00.2]} 5. e4 {[%clk 0:03:04.6]}
5... d6 {[%clk 0:03:00]} 6. c3 {[%clk 0:03:05.1]} 6... g6 {[%clk 0:02:59.5]} 7.
a4 {[%clk 0:02:58.2]} 7... Bg7 {[%clk 0:02:59.5]} 8. a5 {[%clk 0:02:58.9]} 8...
O-O {[%clk 0:02:56]} 9. Nbd2 {[%clk 0:02:58.4]} 9... e5 {[%clk 0:02:44.3]} 10.
dxe5 {[%clk 0:02:37.1]} 10... dxe5 {[%clk 0:02:46.2]} 11. Be2 {[%clk 0:02:37.1]}
11... Nd7 {[%clk 0:02:45.2]} 12. O-O {[%clk 0:02:34.3]} 12... Nc5 {[%clk
0:02:45.1]} 13. Qc2 {[%clk 0:02:29.9]} 13... Rd8 {[%clk 0:02:35.5]} 14. Rfe1
{[%clk 0:02:25]} 14... Bg4 {[%clk 0:02:30.3]} 15. Nc4 {[%clk 0:02:13.7]} 15...
Bxf3 {[%clk 0:02:20.9]} 16. Bxf3 {[%clk 0:02:14.2]} 16... a6 {[%clk 0:02:10]}
17. Red1 {[%clk 0:02:09.6]} 17... Rxd1+ {[%clk 0:02:08.4]} 18. Rxd1 {[%clk
0:02:09.7]} 18... Rd8 {[%clk 0:02:09.3]} 19. b4 {[%clk 0:02:10.4]} 19... Ne6
{[%clk 0:02:07.5]} 20. Bg4 {[%clk 0:02:11.6]} 20... h5 {[%clk 0:02:02.4]} 21.
Bxe6 {[%clk 0:02:11.3]} 21... Rxd1+ {[%clk 0:02:00.9]} 22. Qxd1 {[%clk
0:02:13.2]} 22... Qxe6 {[%clk 0:02:02.6]} 23. Qd8+ {[%clk 0:02:04.1]} 23... Kh7
{[%clk 0:01:58.3]} 24. Qxc7 {[%clk 0:02:02.5]} 24... Qg4 {[%clk 0:01:58.2]} 25.
Ne3 {[%clk 0:01:25.6]} 25... Qxe4 {[%clk 0:01:57.8]} 26. Qxf7 {[%clk 0:01:26]}
26... Kh8 {[%clk 0:01:31]} 27. g3 {[%clk 0:00:53.3]} 27... h4 {[%clk 0:01:20.9]}
28. gxh4 {[%clk 0:00:51.3]} 28... Bh6 {[%clk 0:01:21.3]} 29. Qe8+ {[%clk
0:00:45.6]} 29... Kh7 {[%clk 0:01:20.7]} 30. Qd7+ {[%clk 0:00:44.9]} 30... Kh8
{[%clk 0:01:21.1]} 31. Qd5 {[%clk 0:00:37.2]} 31... Qb1+ {[%clk 0:01:12.2]} 32.
Nf1 {[%clk 0:00:37]} 32... Bf4 {[%clk 0:00:50.4]} 33. Kg2 {[%clk 0:00:32.7]}
33... Qc2 {[%clk 0:00:43.6]} 34. Qxb7 {[%clk 0:00:32.7]} 34... Qxc3 {[%clk
0:00:40.3]} 35. b5 {[%clk 0:00:33.2]} 35... axb5 {[%clk 0:00:40]} 36. a6 {[%clk
0:00:34.2]} 1-0